fUSD/lending_fUSD_20260130
["ID","MTS","AMOUNT","RATE_DAILY","PERIOD"]
[404068118,1769782248211,-530829.85560539,0.00018,2]
[404068119,1769782248222,-44586.799954,0.00018,2]
[404068120,1769782248485,-13642.25724377,0.00018,2]
[404068121,1769782248995,-360.73561521,0.0001396,2]
[404068122,1769782249006,-500.0,0.00014388,2]
[404068123,1769782249015,-500.0,0.00014443,2]
[404068124,1769782249024,-350.0,0.00014498,2]
[404068125,1769782249036,-3423758.95116724,0.00018,2]
[404068126,1769782249045,-1075.4,0.00018,2]
[404068127,1769782249057,-239.67572878,0.00018,2]
[404068128,1769782249067,-340.68187772,0.00018,2]
[404068129,1769782249077,-273.91511861,0.00018,2]
[404068130,1769782249086,-151.0,0.00018,2]
[404068131,1769782249095,-152.08724,0.00018,2]
[404068132,1769782249105,-1502.0,0.00018,2]
[404068133,1769782249114,-1502.0,0.00018,2]
[404068134,1769782249122,-1502.0,0.00018,2]
[404068135,1769782249131,-1502.0,0.00018,2]
[404068136,1769782249141,-1502.0,0.00018,2]
[404068137,1769782249150,-1502.0,0.00018,2]
[404068138,1769782249159,-1502.0,0.00018,2]
[404068139,1769782249168,-1502.0,0.00018,2]
[404068140,1769782249177,-1502.0,0.00018,2]
[404068141,1769782249187,-1502.0,0.00018,2]
[404068142,1769782249196,-1502.0,0.00018,2]
[404068143,1769782249205,-1502.0,0.00018,2]
[404068144,1769782249218,-1502.0,0.00018,2]
[404068145,1769782249227,-1502.0,0.00018,2]
[404068146,1769782249236,-1502.0,0.00018,2]
[404068147,1769782249246,-1502.0,0.00018,2]
[404068148,1769782249255,-388.96136667,0.00018,2]
[404068149,1769782249265,-151.0,0.00018,2]
[404068150,1769782249274,-253.31946,0.00018,2]
[404068151,1769782249283,-253.31946,0.00018,2]
[404068152,1769782249294,-253.31946,0.00018,2]
[404068153,1769782249304,-253.31946,0.00018,2]
[404068154,1769782249314,-151.0,0.00018,2]
[404068155,1769782249324,-151.0,0.00018,2]
[404068156,1769782249334,-151.0,0.00018,2]
[404068157,1769782249343,-151.0,0.00018,2]
[404068158,1769782249352,-151.0,0.00018,2]
[404068159,1769782249361,-151.0,0.00018,2]
[404068160,1769782249370,-151.0,0.00018,2]
[404068161,1769782249379,-151.0,0.00018,2]
[404068162,1769782249389,-151.0,0.00018,2]
[404068163,1769782249399,-427.56438045,0.00018,2]
[404068164,1769782249410,-151.0,0.00018,2]
[404068165,1769782249419,-151.0,0.00018,2]
[404068166,1769782249430,-151.0,0.00018,2]
[404068167,1769782249442,-151.0,0.00018,2]
[404068168,1769782249452,-151.0,0.00018,2]
[404068169,1769782249464,-151.0,0.00018,2]
[404068170,1769782249474,-151.0,0.00018,2]
[404068171,1769782249488,-170.231382,0.00018,2]
[404068172,1769782249499,-151.0,0.00018,2]
[404068173,1769782249511,-151.0,0.00018,2]
[404068174,1769782249523,-151.0,0.00018,2]
[404068175,1769782249537,-199.347532,0.00018,2]
[404068176,1769782249548,-151.0,0.00018,2]
[404068177,1769782249558,-151.0,0.00018,2]
[404068178,1769782249567,-151.0,0.00018,2]
[404068179,1769782249576,-458.818644,0.00018,2]
[404068180,1769782249585,-458.818644,0.00018,2]
[404068181,1769782249594,-458.818644,0.00018,2]
[404068182,1769782249603,-200.0,0.00018,2]
[404068183,1769782249612,-458.818644,0.00018,2]
[404068184,1769782249621,-556.122403,0.00018,2]
[404068185,1769782249631,-556.122403,0.00018,2]
[404068186,1769782249640,-556.122403,0.00018,2]
[404068187,1769782249651,-556.122403,0.00018,2]
[404068188,1769782249661,-200.0,0.00018,2]
[404068189,1769782249670,-151.0,0.00018,2]
[404068190,1769782249679,-151.0,0.00018,2]
[404068191,1769782249689,-511.109873,0.00018,2]
[404068192,1769782249699,-151.0,0.00018,2]
[404068193,1769782249710,-511.109873,0.00018,2]
[404068194,1769782249721,-511.109873,0.00018,2]
[404068195,1769782249731,-2000.0,0.00018016,2]
[404068196,1769782249742,-613.56434793,0.00018016,2]
[404068197,1769782249752,-1325.64130309,0.00018016,2]
[404068198,1769782249761,-503.29314635,0.00018016,2]
[404068199,1769782249772,-2000.0,0.00018016,2]
[404068200,1769782249782,-500.0,0.00018016,2]
[404068201,1769782249794,-162.27706607,0.00018027,2]
[404068202,1769782249803,-301.0,0.00018063,2]
[404068203,1769782249814,-201.93286099,0.00018067,2]
[404068204,1769782249823,-987.88080104,0.00018067,2]
[404068205,1769782249833,-403.93,0.00018077,2]
[404068206,1769782249842,-301.0,0.0001809,2]
[404068207,1769782249851,-772.81,0.00018111,2]
[404068208,1769782249863,-5888.0,0.0001815,2]
[404068209,1769782249873,-403.93,0.00018163,2]
[404068210,1769782249882,-5888.0,0.00018177,2]
[404068211,1769782249891,-200.0,0.0001818,2]
[404068212,1769782249902,-153.13,0.00018206,2]
[404068213,1769782249913,-238.59,0.00018249,2]
[404068214,1769782249924,-403.93,0.0001825,2]
[404068215,1769782249934,-5888.0,0.00018267,2]
[404068216,1769782249945,-902.15,0.00018306,2]
[404068217,1769782249956,-3292.0,0.00018308,2]
[404068218,1769782249967,-153.13,0.00018322,2]
[404068219,1769782249979,-301.0,0.00018337,2]
[404068220,1769782249989,-238.59,0.00018339,2]
[404068221,1769782250000,-5648.25,0.00018356,2]
[404068222,1769782250010,-228.55195237,0.00018365,2]
[404068223,1769782250023,-714.44,0.00018385,2]
[404068224,1769782250033,-301.0,0.00018389,2]
[404068225,1769782250042,-238.58300498,0.0001843,2]
[404068226,1769782250051,-153.12256114,0.00018438,2]
[404068227,1769782250060,-1270.0,0.00018466,2]
[404068228,1769782250070,-3190.55752623,0.00018494,2]
[404068229,1769782250079,-10000.0,0.000185,2]
[404068230,1769782250088,-301.0,0.00018501,2]
[404068231,1769782250098,-316.1231749,0.0001852,2]
[404068232,1769782250107,-300.0,0.0001852,2]
[404068233,1769782250116,-300.0,0.0001852,2]
[404068234,1769782250125,-524.93995843,0.00018521,2]
[404068235,1769782250134,-269.36047624,0.00018521,2]
[404068236,1769782250143,-1000.0,0.00018521,2]
[404068237,1769782250152,-1000.0,0.00018521,2]
[404068238,1769782250161,-1002.15998223,0.00018521,2]
[404068239,1769782250170,-1000.0,0.00018521,2]
[404068240,1769782250179,-1000.0,0.00018521,2]
[404068241,1769782250188,-1000.0,0.00018521,2]
[404068242,1769782250197,-1003.05950792,0.00018521,2]
[404068243,1769782250207,-150.0,0.00018521,2]
[404068244,1769782250216,-1000.0,0.00018521,2]
[404068245,1769782250225,-803.73051813,0.00018521,2]
[404068246,1769782250234,-1000.0,0.00018521,2]
[404068247,1769782250243,-1000.0,0.00018521,2]
[404068248,1769782250253,-1000.0,0.00018521,2]
[404068249,1769782250263,-1000.0,0.00018521,2]
[404068250,1769782250271,-1000.0,0.00018521,2]
[404068251,1769782250280,-1000.0,0.00018521,2]
[404068252,1769782250290,-1000.0,0.00018521,2]
[404068253,1769782250299,-1000.0,0.00018521,2]
[404068254,1769782250308,-1000.0,0.00018521,2]
[404068255,1769782250317,-393.88604428,0.00018521,2]
[404068256,1769782250326,-1002.36550973,0.00018521,2]
[404068257,1769782250335,-501.71313812,0.00018521,2]
[404068258,1769782250344,-1000.0,0.00018521,2]
[404068259,1769782250353,-1000.0,0.00018521,2]
[404068260,1769782250363,-1000.0,0.00018521,2]
[404068261,1769782250372,-1000.0,0.00018521,2]
[404068262,1769782250381,-535.85460388,0.00018521,2]
[404068263,1769782250390,-1000.0,0.00018521,2]
[404068264,1769782250403,-1000.0,0.00018521,2]
[404068265,1769782250412,-1000.0,0.00018521,2]
[404068266,1769782250421,-1003.90960822,0.00018521,2]
[404068267,1769782250430,-1000.0,0.00018521,2]
[404068268,1769782250441,-505.87219837,0.00018521,2]
[404068269,1769782250450,-1001.7423367,0.00018521,2]
[404068270,1769782250459,-1000.0,0.00018521,2]
[404068271,1769782250471,-1000.0,0.00018521,2]
[404068272,1769782250482,-1000.0,0.00018521,2]
[404068273,1769782250493,-563.6024582,0.00018521,2]
[404068274,1769782250503,-1000.0,0.00018521,2]
[404068275,1769782250514,-1093.37800921,0.00018521,2]
[404068276,1769782250524,-1000.0,0.00018521,2]
[404068277,1769782250534,-1000.0,0.00018521,2]
[404068278,1769782250543,-502.00704372,0.00018521,2]
[404068279,1769782250553,-1000.0,0.00018521,2]
[404068280,1769782250564,-1000.0,0.00018521,2]
[404068281,1769782250573,-1000.0,0.00018521,2]
[404068282,1769782250583,-501.3344838,0.00018521,2]
[404068283,1769782250592,-1000.0,0.00018521,2]
[404068284,1769782250602,-301.0,0.00018542,2]
[404068285,1769782250611,-158.77663044,0.00018553,2]
[404068286,1769782250620,-1971.97230181,0.00018564,2]
[404068287,1769782250630,-500.0,0.00018564,2]
[404068288,1769782250639,-157.69,0.00018565,2]
[404068289,1769782250649,-970.3044096,0.00018587,2]
[404068290,1769782250658,-301.0,0.00018604,2]
[404068291,1769782250668,-346.92554585,0.00018613,2]
[404068292,1769782250677,-199.07364582,0.00018614,2]
[404068293,1769782250687,-209.40437684,0.00018615,2]
[404068294,1769782250696,-1024.43239068,0.00018615,2]
[404068295,1769782250705,-916.0,0.00018713,2]
[404068296,1769782250714,-1204.0,0.00018713,2]
[404068297,1769782250724,-5933.0,0.00018719,2]
[404068298,1769782250733,-567.0,0.00018719,2]
[404068299,1769782250742,-6575.0,0.00018719,2]
[404068300,1769782250751,-5888.0,0.00018744,2]
[404068301,1769782250760,-5888.0,0.00018752,2]
[404068302,1769782250770,-243.82152136,0.00018756,2]
[404068303,1769782250781,-5888.0,0.00018759,2]
[404068304,1769782250791,-1252.0,0.00018789,2]
[404068305,1769782250801,-5888.0,0.00018831,2]
[404068306,1769782250810,-301.0,0.00018853,2]
[404068307,1769782250819,-16786.99911875,0.00018888,2]
[404068308,1769782250830,-300.0,0.00018899,2]
[404068309,1769782250839,-300.0,0.00018899,2]
[404068310,1769782250850,-5086.74513296,0.000189,3]
[404068311,1769782250861,-40000.0,0.000189,5]
[404068312,1769782250871,-150.49724474,0.000189,2]
[404068313,1769782250880,-213.909,0.000189,2]
[404068314,1769782250890,-200.0,0.000189,6]
[404068315,1769782250899,-88318.97900609,0.000189,2]
[404068316,1769782250908,-5888.0,0.00018907,2]
[404068317,1769782250918,-300.0,0.00018999,2]
[404068318,1769782250926,-342.16934366,0.00018999,2]
[404068319,1769782250935,-10000.0,0.00019,2]
[404068320,1769782250944,-5169.84360059,0.00019,2]
[404068321,1769782250954,-40000.0,0.00019,4]
[404068322,1769782250963,-300.0,0.00019,2]
[404068323,1769782250973,-389.15849174,0.00019,2]
[404068324,1769782250983,-8069.82986769,0.00019,2]
[404068325,1769782250992,-179.65826196,0.00019,2]
[404068326,1769782251000,-500.0,0.00019009,2]
[404068327,1769782251010,-500.0,0.00019009,2]
[404068328,1769782251019,-500.0,0.00019009,2]
[404068329,1769782251028,-500.0,0.00019009,2]
[404068330,1769782251037,-301.0,0.00019053,2]
[404068331,1769782251046,-1500.0,0.00019068,2]
[404068332,1769782251055,-1500.0,0.00019068,2]
[404068333,1769782251064,-1403.11901333,0.00019068,2]
[404068334,1769782251074,-1500.0,0.00019068,2]
[404068335,1769782251083,-1500.0,0.00019068,2]
[404068336,1769782251093,-237.74347916,0.00019068,2]
[404068337,1769782251102,-1500.0,0.00019068,2]
[404068338,1769782251111,-1500.0,0.00019068,2]
[404068339,1769782251120,-1503.64430583,0.00019068,2]
[404068340,1769782251129,-1003.8458017,0.00019068,2]
[404068341,1769782251139,-1503.47344259,0.00019068,2]
[404068342,1769782251148,-195.80691697,0.00019068,2]
[404068343,1769782251157,-1500.0,0.00019068,2]
[404068344,1769782251166,-1004.70133211,0.00019068,2]
[404068345,1769782251175,-1500.0,0.00019068,2]
[404068346,1769782251184,-1500.0,0.00019068,2]
[404068347,1769782251193,-1500.0,0.00019068,2]
[404068348,1769782251203,-502.7983438,0.00019068,2]
[404068349,1769782251212,-1003.32803614,0.00019068,2]
[404068350,1769782251221,-1500.0,0.00019068,2]
[404068351,1769782251230,-501.82931453,0.00019068,2]
[404068352,1769782251239,-1500.0,0.00019068,2]
[404068353,1769782251248,-1500.0,0.00019068,2]
[404068354,1769782251257,-288.05199057,0.00019068,2]
[404068355,1769782251266,-1500.0,0.00019068,2]
[404068356,1769782251277,-1500.0,0.00019068,2]
[404068357,1769782251288,-1500.0,0.00019068,2]
[404068358,1769782251298,-643.5873001,0.00019068,2]
[404068359,1769782251308,-1500.0,0.00019068,2]
[404068360,1769782251317,-1500.0,0.00019068,2]
[404068361,1769782251327,-1500.0,0.00019068,2]
[404068362,1769782251336,-1500.0,0.00019068,2]
[404068363,1769782251345,-1500.0,0.00019068,2]
[404068364,1769782251354,-1500.0,0.00019068,2]
[404068365,1769782251364,-301.0,0.00019133,2]
[404068366,1769782251374,-150.0,0.00019143,2]
[404068367,1769782251383,-150.0,0.00019143,2]
[404068368,1769782251394,-1409.0,0.00019143,2]
[404068369,1769782251405,-616.0,0.00019143,2]
[404068370,1769782251414,-3479.0,0.00019143,2]
[404068371,1769782251423,-1334.0,0.00019143,2]
[404068372,1769782251432,-5888.0,0.00019148,2]
[404068373,1769782251571,-217.15233878,0.00019163,2]
[404068374,1769782251581,-1062.33638913,0.00019163,2]
[404068375,1769782251591,-2011.85999459,0.00019178,12]
[404068376,1769782251600,-500.0,0.00019178,2]
[404068377,1769782251610,-500.0,0.00019178,2]
[404068378,1769782251619,-500.0,0.00019178,2]
[404068379,1769782251628,-500.0,0.00019178,2]
[404068380,1769782251638,-500.0,0.00019178,2]
[404068381,1769782251647,-580.76903245,0.00019178,2]
[404068382,1769782251656,-500.0,0.00019178,2]
[404068383,1769782251665,-500.0,0.00019178,2]
[404068384,1769782251674,-500.0,0.00019178,2]
[404068385,1769782251684,-500.0,0.00019178,2]
[404068386,1769782251693,-500.0,0.00019178,2]
[404068387,1769782251702,-151.0,0.00019178,2]
[404068388,1769782251711,-151.0,0.00019178,2]
[404068389,1769782251720,-151.0,0.00019178,2]
[404068390,1769782251730,-3596.482077,0.00019178,2]
[404068391,1769782251738,-3596.482077,0.00019178,2]
[404068392,1769782251747,-3596.482077,0.00019178,2]
[404068393,1769782251756,-3596.482077,0.00019178,2]
[404068394,1769782251765,-151.0,0.00019178,2]
[404068395,1769782251775,-156.346978,0.00019178,2]
[404068396,1769782251785,-4362.649031,0.00019178,2]
[404068397,1769782251795,-4362.649031,0.00019178,2]
[404068398,1769782251804,-4362.649031,0.00019178,2]
[404068399,1769782251813,-4362.649031,0.00019178,2]
[404068400,1769782251823,-150.19060405,0.00019178,2]
[404068401,1769782251833,-301.0,0.00019297,2]
[404068402,1769782251842,-1000.0,0.00019303,2]
[404068403,1769782251851,-301.0,0.00019304,2]
[404068404,1769782251860,-157.69,0.00019339,2]
[404068405,1769782251870,-301.0,0.00019355,2]
[404068406,1769782251880,-301.0,0.00019465,2]
[404068407,1769782251890,-10000.0,0.000195,2]
[404068408,1769782251899,-41645.19636832,0.000195,2]
[404068409,1769782251908,-150.0,0.0001955,5]
[404068410,1769782251918,-2000.0,0.00019616,2]
[404068411,1769782251927,-2000.0,0.00019616,2]
[404068412,1769782251936,-394.65701535,0.00019616,2]
[404068413,1769782251945,-2000.0,0.00019616,2]
[404068414,1769782251955,-2000.0,0.00019616,2]
[404068415,1769782251964,-2067.46525719,0.00019616,2]
[404068416,1769782251973,-2000.0,0.00019616,2]
[404068417,1769782251984,-2000.0,0.00019616,2]
[404068418,1769782251993,-2000.0,0.00019616,2]
[404068419,1769782252003,-2000.0,0.00019616,2]
[404068420,1769782252014,-2000.0,0.00019616,2]
[404068421,1769782252023,-802.6302377,0.00019616,2]
[404068422,1769782252032,-676.76997938,0.00019616,2]
[404068423,1769782252042,-789.92758812,0.00019616,2]
[404068424,1769782252051,-2000.0,0.00019616,2]
[404068425,1769782252060,-2000.0,0.00019616,2]
[404068426,1769782252070,-2000.0,0.00019616,2]
[404068427,1769782252080,-503.45670612,0.00019616,2]
[404068428,1769782252091,-2000.0,0.00019616,2]
[404068429,1769782252101,-2000.0,0.00019616,2]
[404068430,1769782252112,-2000.0,0.00019616,2]
[404068431,1769782252123,-1004.70692071,0.00019616,2]
[404068432,1769782252134,-226.45009317,0.00019711,2]
[404068433,1769782252143,-1101.64283553,0.00019711,2]
[404068434,1769782252153,-328.18562781,0.000198,7]
[404068435,1769782252162,-50000.0,0.000199,5]
[404068436,1769782252172,-359.76179104,0.00019982,2]
[404068437,1769782252182,-1533.57238042,0.0002,2]
[404068438,1769782252192,-25599.59933361,0.0002,2]
[404068439,1769782252202,-3950.0,0.0002,2]
[404068440,1769782252211,-1294.74878426,0.0002,2]
[404068441,1769782252223,-1045.13335656,0.0002,2]
[404068442,1769782252233,-2864.09556357,0.0002,2]
[404068443,1769782252243,-12926.13008079,0.0002,2]
[404068444,1769782252253,-152.0,0.0002,2]
[404068445,1769782252263,-151.0,0.0002,2]
[404068446,1769782252273,-10000.0,0.0002,2]
[404068447,1769782252282,-164.58639933,0.0002,2]
[404068448,1769782252291,-500.0,0.0002,2]
[404068449,1769782252301,-400.0,0.0002,2]
[404068450,1769782252310,-1000.0,0.0002,14]
[404068451,1769782252320,-498.41516029,0.0002,10]
[404068452,1769782252329,-160.73786012,0.0002,10]
[404068453,1769782252338,-200.0,0.0002,2]
[404068454,1769782252348,-200.0,0.0002,2]
[404068455,1769782252358,-5444.6895471,0.0002,2]
[404068456,1769782252370,-7503.7615053,0.0002,2]
[404068457,1769782252380,-2464.68,0.0002,2]
[404068458,1769782252391,-37874.26662332,0.0002,14]
[404068459,1769782252405,-265.9577188,0.0002,2]
[404068460,1769782252415,-187.88,0.0002,2]
[404068461,1769782252426,-200.0,0.0002,2]
[404068462,1769782252435,-1000.0,0.0002,7]
[404068463,1769782252448,-150.0,0.00020073,2]
[404068464,1769782252458,-500.43732216,0.00020073,2]
[404068465,1769782252469,-150.0,0.00020073,2]
[404068466,1769782252478,-164.4116579,0.00020073,2]
[404068467,1769782252487,-3190.55752623,0.00020074,2]
[404068468,1769782252496,-150.72769008,0.00020104,5]
[404068469,1769782252505,-157.69,0.00020112,2]
[404068470,1769782252515,-4609.0,0.00020139,2]
[404068471,1769782252524,-1000.0,0.00020164,2]
[404068472,1769782252533,-1000.05166719,0.00020164,2]
[404068473,1769782252543,-982.05632992,0.00020164,2]
[404068474,1769782252553,-2500.0,0.00020164,2]
[404068475,1769782252563,-1138.23968233,0.00020164,2]
[404068476,1769782252572,-659.71197023,0.00020164,2]
[404068477,1769782252582,-2500.0,0.00020164,2]
[404068478,1769782252591,-2500.0,0.00020164,2]
[404068479,1769782252600,-2500.0,0.00020164,2]
[404068480,1769782252612,-2003.01558434,0.00020164,2]
[404068481,1769782252621,-2500.0,0.00020164,2]
[404068482,1769782252631,-2500.0,0.00020164,2]
[404068483,1769782252640,-2500.0,0.00020164,2]
[404068484,1769782252650,-2500.0,0.00020164,2]
[404068485,1769782252662,-995.12289102,0.00020164,2]
[404068486,1769782252672,-1142.40362045,0.00020259,2]
[404068487,1769782252682,-6057.6907731,0.00020269,2]
[404068488,1769782252691,-2774.2966248,0.00020275,2]
[404068489,1769782252701,-3157.6759858,0.00020275,2]
[404068490,1769782252710,-34778.3683439,0.00020279,2]
[404068491,1769782252719,-1288.4576534,0.00020289,2]
[404068492,1769782252729,-1438.0,0.00020302,2]
[404068493,1769782252739,-10000.0,0.000205,2]
[404068494,1769782252748,-154.32,0.00020548,2]
[404068495,1769782252757,-150.0,0.00020548,2]
[404068496,1769782252766,-150.0,0.00020603,2]
[404068497,1769782252776,-158.77663044,0.00020615,2]
[404068498,1769782252786,-250.0,0.00020621,2]
[404068499,1769782252795,-300.0,0.00020621,2]
[404068500,1769782252806,-150.0,0.00020658,2]
[404068501,1769782252816,-2500.0,0.00020712,2]
[404068502,1769782252827,-3000.0,0.00020712,2]
[404068503,1769782252836,-3000.0,0.00020712,2]
[404068504,1769782252845,-3000.0,0.00020712,2]
[404068505,1769782252855,-3000.0,0.00020712,2]
[404068506,1769782252865,-185.00671235,0.00020712,2]
[404068507,1769782252875,-213.12938969,0.00020712,2]
[404068508,1769782252886,-1574.61207896,0.00020712,2]
[404068509,1769782252896,-150.0,0.00020712,2]
[404068510,1769782252906,-153.15208977,0.00020767,2]
[404068511,1769782252916,-1351.6535123,0.00020778,2]
[404068512,1769782252926,-1037.24664297,0.00020784,2]
[404068513,1769782252936,-619.0292502,0.00020785,2]
[404068514,1769782252946,-704.5727484,0.00020785,2]
[404068515,1769782252955,-7760.1028982,0.00020789,2]
[404068516,1769782252965,-287.4937625,0.000208,2]
[404068517,1769782252975,-1184.6725544,0.00020807,2]
[404068518,1769782252984,-157.69,0.00020886,2]
[404068519,1769782252993,-2000.0,0.00020895,2]
[404068520,1769782253003,-2000.0,0.00020895,2]
[404068521,1769782253012,-2000.0,0.00020895,2]
[404068522,1769782253022,-700.0,0.0002097,2]
[404068523,1769782253032,-400.0,0.0002097,2]
[404068524,1769782253042,-700.0,0.0002097,2]
[404068525,1769782253051,-603.96523111,0.0002097,2]
[404068526,1769782253061,-802.17815938,0.0002097,2]
[404068527,1769782253071,-167.77,0.00021,10]
[404068528,1769782253080,-11181.69686347,0.00021,2]
[404068529,1769782253089,-151.0,0.00021,2]
[404068530,1769782253099,-10000.0,0.00021,2]
[404068531,1769782253108,-187053.16971552,0.00021,2]
[404068532,1769782253118,-126363.48745528,0.00021,2]
[404068533,1769782253127,-263.47,0.00021,7]
[404068534,1769782253137,-350.0,0.00021,2]
[404068535,1769782253147,-240.0,0.00021,10]
[404068536,1769782253156,-1215.84,0.00021068,2]
[404068537,1769782253166,-350.0,0.00021168,2]
[404068538,1769782253175,-450.0,0.00021168,2]
[404068539,1769782253185,-300.0,0.00021183,2]
[404068540,1769782253195,-150.0,0.00021183,2]
[404068541,1769782253204,-3675.98,0.00021189,2]
[404068542,1769782253214,-1000.0,0.00021233,2]
[404068543,1769782253223,-2220.1419016,0.0002126,2]
[404068544,1769782253232,-253.86921653,0.0002126,2]
[404068545,1769782253242,-2186.47486829,0.0002126,2]
[404068546,1769782253251,-3500.0,0.0002126,2]
[404068547,1769782253261,-373.07297731,0.00021351,2]
[404068548,1769782253270,-1228.50543892,0.00021355,2]
[404068549,1769782253280,-1000.0,0.00021437,2]
[404068550,1769782253289,-1270.0,0.00021466,2]
[404068551,1769782253298,-10000.0,0.000215,2]
[404068552,1769782253308,-50000.0,0.000215,7]
[404068553,1769782253317,-3190.55752623,0.00021653,2]
[404068554,1769782253326,-1000.0,0.00021711,2]
[404068555,1769782253335,-916.0,0.00021713,2]
[404068556,1769782253345,-1204.0,0.00021713,2]
[404068557,1769782253356,-450.0,0.00021716,2]
[404068558,1769782253365,-199.91174027,0.00021716,2]
[404068559,1769782253375,-5933.0,0.00021719,2]
[404068560,1769782253385,-311.74,0.00021719,2]
[404068561,1769782253396,-6575.0,0.00021719,2]
[404068562,1769782253408,-4000.0,0.00021808,2]
[404068563,1769782253418,-240.1,0.0002189,2]
[404068564,1769782253427,-262.9,0.0002189,2]
[404068565,1769782253437,-204.38,0.0002189,2]
[404068566,1769782253447,-249.61,0.000219,2]
[404068567,1769782253456,-5000.0,0.00021918,2]
[404068568,1769782253466,-151.0,0.00021918,2]
[404068569,1769782253478,-151.0,0.00021918,2]
[404068570,1769782253487,-153.295984,0.00021918,2]
[404068571,1769782253497,-800.0,0.00021918,4]
[404068572,1769782253506,-800.0,0.00021918,4]
[404068573,1769782253515,-800.0,0.00021918,4]
[404068574,1769782253525,-800.0,0.00021918,4]
[404068575,1769782253534,-800.0,0.00021918,4]
[404068576,1769782253542,-800.0,0.00021918,4]
[404068577,1769782253551,-800.0,0.00021918,4]
[404068578,1769782253559,-800.0,0.00021918,4]
[404068579,1769782253567,-800.0,0.00021918,4]
[404068580,1769782253576,-800.0,0.00021918,4]
[404068581,1769782253585,-800.0,0.00021918,4]
[404068582,1769782253595,-800.0,0.00021918,4]
[404068583,1769782253604,-800.0,0.00021918,4]
[404068584,1769782253613,-800.0,0.00021918,4]
[404068585,1769782253623,-800.0,0.00021918,4]
[404068586,1769782253632,-800.0,0.00021918,4]
[404068587,1769782253641,-500.0,0.00021918,2]
[404068588,1769782253650,-500.0,0.00021918,2]
[404068589,1769782253660,-150.0,0.00021918,2]
[404068590,1769782253669,-500.0,0.00021973,2]
[404068591,1769782253678,-500.80530766,0.00021973,2]
[404068592,1769782253687,-1000.0,0.00021985,2]
[404068593,1769782253698,-151.0,0.00022,2]
[404068594,1769782253707,-8565.29370347,0.00022,15]
[404068595,1769782253716,-6142.81,0.00022,2]
[404068596,1769782253725,-38410.68578782,0.00022,4]
[404068597,1769782253734,-2975.34,0.00022,7]
[404068598,1769782253743,-253.31946,0.00022,2]
[404068599,1769782253753,-253.31946,0.00022,2]
[404068600,1769782253762,-253.31946,0.00022,2]
[404068601,1769782253771,-253.31946,0.00022,2]
[404068602,1769782254068,-151.0,0.00022,2]
[404068603,1769782254090,-151.0,0.00022,2]
[404068604,1769782254113,-243.39013,0.00022,2]
[404068605,1769782254135,-151.0,0.00022,2]
[404068606,1769782254163,-151.0,0.00022,2]
[404068607,1769782254186,-151.0,0.00022,2]
[404068608,1769782254206,-151.0,0.00022,2]
[404068609,1769782254226,-151.0,0.00022,2]
[404068610,1769782254247,-151.0,0.00022,2]
[404068611,1769782254263,-151.0,0.00022,2]
[404068612,1769782254273,-151.0,0.00022,2]
[404068613,1769782254282,-151.0,0.00022,2]
[404068614,1769782254291,-151.0,0.00022,2]
[404068615,1769782254302,-151.0,0.00022,2]
[404068616,1769782254311,-3596.482077,0.00022,2]
[404068617,1769782254321,-3596.482077,0.00022,2]